[Event "Benidorm Open-B 2022"]
[Site "Benidorm"]
[Date "2022.12.06"]
[Round "5.2"]
[White "Saber, Anas"]
[Black "Mallevaey, Guillaume"]
[Result "0-1"]
[ECO "D03"]
[WhiteElo "1920"]
[BlackElo "1761"]
[Annotator "TA"]
[PlyCount "72"]
[EventDate "2022.12.03"]
[EventType "swiss"]
[EventCountry "ESP"]
[SourceTitle "playchess.com"]
[Source "ChessBase"]
[SourceQuality "1"]
[TimeControl "5400+30"]

{[%evp 13,72,0,0,0,6,-25,21,0,5,-4,15,8,25,-13,-20,-50,-45,-54,-59,-47,-44,-48,-43,-68,36,-12,0,-71,-67,-155,-87,-239,-226,-203,-181,-177,-110,-122,-116,-108,-57,-216,-194,-198,-210,-398,-415,-361,-278,-296,-293,-369,-375,-385,-362,-656,-644,-683,-683,-29996,-29997]} 1. d4 d5 2. Nf3 Nf6 3. Bg5 Bf5 4. Nbd2 e6 5. e3 Be7 6. Be2 O-O 7. O-O Nbd7 8. Rc1 {[#] D03: 1 d4 d5 2 Nf3 Nf6 3 Bg5, including Torre Attack with early ...d5.} Ne4 $146 ({Predecessor:} 8... c6 9. c4 Qb6 10. Ne5 Rfe8 11. Bxf6 Nxf6 12. b3 Ba3 13. c5 Qc7 14. Rc3 Bb2 15. Rd3 Bxd3 16. Bxd3 {1-0 (44) Lam,T-Dang,D Ho Chi Minh City 2001}) 9. Bf4 Ndf6 (9... g5 {might be stronger.} 10. Bg3 h5) 10. Nb3 {The position is equal.} Nh5 11. Be5 Nhf6 12. c4 c6 13. c5 (13. Nh4 {with more complications.} dxc4 14. Bxc4 Nd5 15. Nxf5 exf5 16. Bxd5 Qxd5 17. f3) 13... Nd7 14. Ne1 f6 (14... Nxe5 15. dxe5 Bg5 16. f4 $16) 15. Bf4 e5 {[%cal Be6e5,Be5f4,Bf4e3][%mdl 32] Inhibits h4.} 16. f3 Nexc5 (16... exf4 {simplifies} 17. fxe4 Bxe4 18. exf4 b6) 17. dxc5 exf4 18. Nd4 g6 ({Black should play} 18... Bg6 $15 19. b4 (19. Ne6 Qa5 $17) 19... fxe3) 19. Nxf5 (19. b4 $14) 19... gxf5 $11 20. Nd3 (20. b4 $1 $11 {remains equal.}) 20... fxe3 $17 21. Nf4 (21. Qa4 $15) 21... Nxc5 (21... Bxc5 $142 22. Ne6 Qe7 23. Nxf8 Rxf8) 22. Qd4 $2 {[#]} (22. b4 $17 Qd6 23. Nxd5 cxd5 24. Rxc5) 22... Qb6 23. b4 Nd7 24. Qd3 Ne5 (24... Bxb4 25. Qxf5 Rf7 26. Rb1 $17) (24... Qxb4 25. Nxd5 cxd5 26. Qxd5+ Kh8 27. Qxd7) (24... Bd6 $19 25. Qxf5 Bxf4 26. Qxf4 Ne5) 25. Qxf5 Rf7 ({Of course not} 25... Bxb4 $6 26. Rb1 $11) 26. Ne6 Re8 (26... Bxb4 $2 {is the wrong capture.} 27. f4 Nc4 28. Rb1 $19) (26... Nc4 $17 27. a3 a5 28. Qg4+ Kh8) 27. Kh1 $2 ({Better is} 27. f4 $15 Ng6 28. Rb1) 27... Bxb4 $19 {[%cal Be7b4,Bb4f8,Bf8d6][%mdl 32] Threatens to win with ...c5.} ({Stronger than} 27... Qxb4 28. f4 Ng6 29. Bh5 $11) 28. f4 c5 {[%cal Bc6c5,Bc5d4][%mdl 32]} 29. Nd4 (29. Nxc5 Bxc5 30. fxe5 Rxe5 31. Qc8+ Bf8 32. Rf4) 29... cxd4 30. fxe5 Rxe5 31. Qc8+ Bf8 32. Rb1 Qe6 33. Qc2 Bd6 34. Qd3 $2 (34. g3) 34... Re4 {aiming for ...Rg7.} 35. Rf3 Rh4 36. g3 {[#]} Qh3 $1 {[%csl LRg3,LRh2] Weighted Error Value: White=0.69/Black=0.21 (precise)} 0-1

[Event "Benidorm Open-B 2022"]
[Site "Benidorm"]
[Date "2022.12.06"]
[Round "5.3"]
[White "Saez Gabikagogeaskoa, Oscar"]
[Black "Engelaer, Maurice"]
[Result "1-0"]
[ECO "B77"]
[WhiteElo "1941"]
[BlackElo "1785"]
[Annotator "TA"]
[PlyCount "49"]
[EventDate "2022.12.03"]
[EventType "swiss"]
[EventCountry "ESP"]
[SourceTitle "playchess.com"]
[Source "ChessBase"]
[SourceQuality "1"]
[TimeControl "5400+30"]

{[%evp 22,49,25,19,22,6,21,-14,21,15,102,99,87,83,95,22,154,0,0,0,0,-62,0,0,0,0,0,-286,208,198]} 1. e4 c5 2. Nf3 d6 3. d4 cxd4 4. Nxd4 g6 5. Nc3 Nf6 6. Be3 Bg7 7. f3 O-O 8. Bc4 Nc6 9. Qd2 Nxd4 10. Bxd4 Be6 11. Bb3 Qa5 12. O-O Rfc8 {12...Nd7 injects fresh life into this line. B77: Sicilian Dragon: Yugoslav Attack, 9 Bc4 sidelines.} 13. Rad1 b5 14. Rfe1 Bc4 {The position is equal.} 15. e5 {[#]} Ne8 $146 (15... dxe5 $11 {remains equal.} 16. Rxe5 Qd8) ({Predecessor:} 15... dxe5 16. Rxe5 Qb4 17. a3 Qd6 18. Nxb5 Qd7 19. Bxc4 Rxc4 20. b3 Rc6 21. Bf2 Qb7 {1-0 (42) Wieprecht,G-Mierendorf,W Willingen 2001}) 16. exd6 Bxd4+ 17. Qxd4 Nxd6 18. Nd5 {White is more active.} (18. Rxe7 $2 Nf5 19. Qf6 Nxe7 20. Qxe7 Qb6+ 21. Kh1 Re8 $19) (18. Bxc4 $16 Rxc4 19. Qe5) 18... Bxd5 (18... Nf5 $11 19. Qf4 (19. Nxe7+ Nxe7 20. Rxe7 Bxb3 $11) 19... Bxd5 20. Bxd5 Qb6+ 21. Kh1 Rab8) 19. Qxd5 $2 (19. Bxd5 $16 Nf5 20. Qf2) 19... Qb6+ 20. Kf1 Re8 21. h4 (21. Qd4 $11) 21... Rad8 (21... Nf5 $15 22. Qe5 (22. Qxf7+ Kh8 $15) 22... Rad8 23. Rxd8 Rxd8) 22. Qg5 $11 Nf5 {White must now prevent ...Rxd1.} 23. Rxd8 Rxd8 24. h5 $2 {[%mdl 8192] [#]} (24. g4 $11 Qc6 25. Kf2 (25. gxf5 $2 {loses.} Qxf3+ 26. Kg1 Rd4 $19)) 24... h6 $4 {[%mdl 8192]} (24... Rd2 $1 $19 {[%csl Gd2][%cal Rb6f2][%mdl 512] and all is fine.} 25. Re2 (25. Qxd2 $2 Ng3#) (25. Bxf7+ $2 Kg7 $19) 25... Rd1+ 26. Re1 Ne3+ 27. Qxe3 Qxe3 28. Rxd1 gxh5) 25. Qxg6+ {Weighted Error Value: White=0.58/Black=0.55} 1-0

[Event "Benidorm Open-B 2022"]
[Site "Benidorm"]
[Date "2022.12.06"]
[Round "5.4"]
[White "Aadith R"]
[Black "Lopez de Turiso, Jose Angel"]
[Result "1-0"]
[ECO "C55"]
[WhiteElo "1714"]
[BlackElo "1885"]
[Annotator "NA RC COMBH"]
[PlyCount "67"]
[EventDate "2022.12.03"]
[EventType "swiss"]
[EventCountry "ESP"]
[SourceTitle "playchess.com"]
[Source "ChessBase"]
[SourceQuality "1"]
[TimeControl "5400+30"]

1. e4 e5 2. Nf3 Nc6 3. Bc4 Nf6 4. d3 Be7 5. O-O O-O 6. c3 d5 7. exd5 Nxd5 8. h3 a5 9. Re1 Nb6 10. Bb3 a4 11. Bc2 f6 12. Be3 Bf5 13. Nh4 Bd7 14. Bxb6 cxb6 15. Bxa4 g5 16. Nf3 g4 17. hxg4 Bxg4 18. Bc2 f5 19. Nbd2 b5 20. Qe2 Bc5 21. a4 b4 22. d4 bxc3 23. bxc3 Bd6 24. Qc4+ Kh8 25. dxe5 Bxe5 26. Nxe5 Nxe5 27. Rxe5 Qxd2 28. Re7 Rac8 29. Qb5 Qxc3 30. Rae1 Rc7 31. Rxc7 Qxc7 32. Qb4 Rc8 33. Re7 Qc5 34. Qxb7 1-0

[Event "Benidorm Open-B 2022"]
[Site "Benidorm"]
[Date "2022.12.06"]
[Round "5.5"]
[White "Tsiapko, Andrii"]
[Black "Martin Martin, Luis Vicente"]
[Result "1-0"]
[ECO "D11"]
[WhiteElo "1619"]
[BlackElo "1907"]
[Annotator "TA"]
[PlyCount "49"]
[EventDate "2022.12.03"]
[EventType "swiss"]
[EventCountry "ESP"]
[SourceTitle "playchess.com"]
[Source "ChessBase"]
[SourceQuality "1"]
[TimeControl "5400+30"]

{[%evp 9,49,0,22,-50,31,-21,-23,-24,-10,-7,0,-39,46,0,0,0,-5,-46,-42,-52,-11,-16,0,0,0,8,4,7,56,37,72,50,60,66,69,67,89,89,154,156,359,349]} 1. d4 Nf6 2. Nf3 d5 3. c4 c6 4. Nbd2 Bf5 5. Nh4 Bc8 6. g3 {[#] D11: Slav Defence: 3 Nf3 sidelines and 3...Nf6 4 e3 Bg4.} (6. e3 $11) 6... Qa5 $146 (6... dxc4 $1 $15 7. e3 (7. Nxc4 $2 Qd5 $19) 7... b5) ({Predecessor:} 6... g5 7. Nhf3 h6 8. e3 Bf5 9. cxd5 cxd5 10. Qb3 Qc7 11. Ne5 Nc6 12. Bb5 Bg7 13. Bxc6+ bxc6 {1-0 (27) Sychev,K (2553)-Ljukin,S (2362) Chess.com INT 2022}) 7. c5 (7. Qc2 $14) 7... e5 8. a3 {Black has an edge.} Qc7 9. b4 a5 10. Bb2 axb4 (10... e4 $1 $15) 11. axb4 (11. dxe5 $14 Ne4 12. Nxe4 (12. axb4 Rxa1 13. Bxa1 Nxd2 $14) 12... bxa3 13. Nd2 (13. Rxa3 Rxa3 14. Bxa3 Qa5+ 15. Nd2 Qxa3 $17) (13. Nd6+ Bxd6 14. cxd6 Qa5+ 15. Qd2 axb2 $17) 13... Bxc5 14. Qb3) 11... Rxa1 $11 12. Qxa1 e4 13. Qa5 Na6 14. Ng2 Qb8 (14... Qxa5 {simplifies} 15. bxa5 Be7 16. Ne3 Bd8) 15. Ne3 (15. f3 {keeps more tension.} b6 16. Qa4 Be7 17. fxe4 bxc5 18. Qxc6+ Kd8 19. dxc5 Nxb4 20. Qb6+) 15... Be7 {[%cal Ob7b6]} 16. b5 {Against b6} cxb5 17. Qxb5+ Bd7 18. Qb3 $36 {[%mdl 2048] White has some pressure.} Bc6 ({Resist} 18... Nc7 19. Bg2 $14) (18... b6 $11) 19. Bg2 (19. Nf5 $5 {[%cal Rf5g7]}) 19... g6 20. O-O O-O 21. f3 {[#] Threatens to win with fxe4.} exf3 22. Nxf3 {[%cal Bd2f3,Bf3e5,Be5c6][%mdl 32]} ({Reject} 22. Rxf3 Nc7 $11) 22... Qd8 23. Ne5 Nc7 ({Better is} 23... Kg7) 24. Qb6 $16 {White has more active pieces.} Nd7 $2 {[#]} (24... Qb8 $16 {was necessary.} 25. Nxc6 bxc6) 25. Nxc6 {Weighted Error Value: White=0.24 (precise) /Black=0.37} 1-0

[Event "Benidorm Open-B 2022"]
[Site "Benidorm"]
[Date "2022.12.06"]
[Round "5.6"]
[White "Garcia Bueno, Juan Pablo"]
[Black "Swapna C N"]
[Result "0-1"]
[ECO "A40"]
[WhiteElo "1788"]
[BlackElo "1481"]
[Annotator "NA RC COMBH"]
[PlyCount "52"]
[EventDate "2022.12.03"]
[EventType "swiss"]
[EventCountry "ESP"]
[SourceTitle "playchess.com"]
[Source "ChessBase"]
[SourceQuality "1"]
[TimeControl "5400+30"]

1. d4 f5 2. Nf3 e6 3. g3 Nf6 4. Bg2 c6 5. O-O d5 6. c4 Bd6 7. Nbd2 O-O 8. Ne5 Bxe5 9. dxe5 Ne4 10. Qc2 Nd7 11. cxd5 exd5 12. Nxe4 fxe4 13. Rd1 Qe7 14. Bxe4 dxe4 15. Qxe4 Qxe5 16. Qc4+ Kh8 17. Bf4 Qh5 18. Bd6 Re8 19. g4 Qg6 20. h3 Nb6 21. Qf4 h5 22. f3 Rxe2 23. Be5 Nd5 24. Rxd5 cxd5 25. Rc1 Bd7 26. Rc7 Re8 0-1

[Event "Benidorm Open-B 2022"]
[Site "Benidorm"]
[Date "2022.12.06"]
[Round "5.7"]
[White "Stokes, Paul C"]
[Black "Selva Salvador, Antonio"]
[Result "0-1"]
[ECO "A43"]
[WhiteElo "1791"]
[BlackElo "1954"]
[Annotator "TA"]
[PlyCount "70"]
[EventDate "2022.12.03"]
[EventType "swiss"]
[EventCountry "ESP"]
[SourceTitle "playchess.com"]
[Source "ChessBase"]
[SourceQuality "1"]
[TimeControl "5400+30"]

{[%evp 12,70,25,37,58,56,52,58,64,0,0,0,0,0,0,-11,-14,-31,-31,-52,33,29,29,16,31,32,53,0,7,0,14,16,4,0,0,-9,0,-58,-68,-76,-7,-94,-98,-100,-97,-104,-81,-107,-125,-141,-126,-128,-124,-124,-118,-125,-131,-210,-236,-1156,-1149]} 1. d4 c5 2. d5 d6 3. Nc3 Nf6 4. e4 g6 5. Nf3 Bg7 6. Bd3 O-O 7. O-O b6 {A43: Schmid Benoni.} 8. Qe2 a6 9. a4 $1 {[#] Against b5} e6 $146 {White is slightly better.} ({Predecessor:} 9... Ra7 10. Re1 Nbd7 11. Bf4 Ne8 12. e5 dxe5 13. Nxe5 Nxe5 14. Bxe5 Bxe5 15. Qxe5 Qd6 {1-0 (64) Luo,T (2390)-Legenia,A (2092) Chess.com INT 2022}) 10. Rd1 (10. Bc4 $14) 10... exd5 $11 11. Nxd5 Nxd5 12. exd5 Re8 13. Qf1 Bg4 14. Be2 Qe7 15. Be3 Qf6 ({Much weaker is} 15... Bxb2 16. Rab1 Bxf3 17. Bxf3) (15... Bxf3 $15 16. Bxf3 Bxb2) 16. c3 $14 h6 17. h3 Bf5 18. Nh2 Qe7 19. Bd3 (19. Re1 $14 {is more appropriate.}) 19... Bxd3 $11 20. Qxd3 Nd7 21. Nf3 Nf6 22. Bf4 Qd7 23. Re1 {Against Re4} Rxe1+ 24. Rxe1 (24. Nxe1 $11 Re8 25. Bg3) 24... Qxa4 $15 25. Bxd6 Qd7 ({Black should try} 25... Rd8 $17 {...c4 is the strong threat.} 26. Be5 Rxd5) 26. Bf4 {Inhibits c4.} (26. Be5 $11 {keeps the balance.}) 26... Qxd5 $17 ({But not} 26... Nxd5 27. Rd1 Rd8 28. Qxa6 $11) 27. Qc2 b5 28. Rd1 Qc4 $36 {[%mdl 2048] Black is on the roll.} 29. Qd2 Ne4 30. Qd5 Qxd5 31. Rxd5 b4 32. cxb4 cxb4 33. Be5 a5 {[#] Strongly threatening ...a4.} 34. Rd4 {Against a4} (34. Rb5 $17) 34... Ng5 $19 {White must now prevent ...Nxf3+.} 35. Nxg5 (35. Bxg7 Nxf3+ 36. gxf3 Kxg7 37. Kg2) 35... Bxe5 {Weighted Error Value: White=0.43/Black=0.11 (very precise)} 0-1

[Event "Benidorm Open-B 2022"]
[Site "Benidorm"]
[Date "2022.12.06"]
[Round "5.8"]
[White "Urena Casacuberta, Lluis"]
[Black "Martinez Dourado, Daniel"]
[Result "0-1"]
[ECO "B01"]
[WhiteElo "1917"]
[BlackElo "1837"]
[Annotator "TA"]
[PlyCount "72"]
[EventDate "2022.12.03"]
[EventType "swiss"]
[EventCountry "ESP"]
[SourceTitle "playchess.com"]
[Source "ChessBase"]
[SourceQuality "1"]
[TimeControl "5400+30"]

{[%evp 9,72,8,5,7,12,25,26,11,10,13,27,15,55,0,24,41,25,15,77,71,61,61,79,77,74,25,20,0,17,17,18,27,39,0,20,-32,-37,-239,-236,-227,-185,-185,-185,-185,-185,-185,-185,-185,-178,-178,-170,-158,-39,-164,-160,-253,-251,-251,-249,-242,-177,-529,-162,-29970,-29962]} 1. e4 d5 2. exd5 Nf6 3. Bb5+ Nbd7 {[%cal Bb8d7,Bd7c5,Bc5b3][%mdl 32]} 4. Nc3 a6 5. Bc4 b5 6. Bb3 {B01: Scandinavian Defence.} Nc5 7. d4 Nxb3 8. axb3 {White has an edge.} Bb7 9. Nf3 {[#]} b4 $146 ({Predecessor:} 9... Nxd5 10. Nxd5 Qxd5 11. O-O e6 12. Qe2 Bd6 13. c4 Qh5 14. d5 O-O 15. h3 exd5 16. cxb5 axb5 17. Rxa8 Bxa8 18. Qxb5 {0-1 (51) Silva,A (1775)-Thiel,T (2265) Chess.com INT 2022}) 10. Na4 Bxd5 11. Nc5 (11. c4 $14 bxc3 12. bxc3) 11... a5 12. c4 bxc3 13. bxc3 {[%cal Bb2c3,Bc3c4][%mdl 32] c4 is the strong threat.} Ne4 (13... e6 $11 {remains equal.}) 14. c4 Nxc5 15. dxc5 Be4 16. Qxd8+ Kxd8 {[#]} 17. O-O (17. Ne5 $1 $16 {[%cal Re5f7]} Ke8 18. f3) 17... e6 18. Be3 (18. Ne5 $5 {[%cal Re5f7]} Ke8 19. Re1 $14) 18... Be7 19. Ne5 Ke8 20. f3 Bc2 21. Ra3 Bf6 22. Rf2 ({White should try} 22. Bd4 $11) 22... Bxb3 $15 {A strong pair of Bishops.} 23. Nxf7 $2 (23. Rxb3 $15 Bxe5 24. f4) 23... Kxf7 $19 24. Rxb3 Rhb8 25. Rxb8 Rxb8 {[%mdl 4096] Endgame KRB-KRB} 26. Ra2 {[#] Inhibits a4.} Rb1+ $1 27. Kf2 {[%cal Oe3d2]} Rb2+ 28. Rxb2 Bxb2 {KB-KB} 29. Ke2 Ke7 30. Kd3 Kd7 ({Better is} 30... Ba3 $17 {aiming for ...a4.} 31. Bd4 g6) 31. Bd2 (31. Kc2 $1 $15 Ba3 32. Kb3) 31... a4 {[%cal Ba5a4,Ba4a3][%mdl 32]} 32. Bb4 (32. Be3 $17) 32... Kc6 33. h3 g6 34. g3 h6 35. Bd2 $2 (35. g4) 35... Bg7 $2 ({Weaker is} 35... a3 36. Kc2 $19) (35... Kxc5 {Hoping for ...a3.} 36. Kc2 Be5) 36. Be3 $2 (36. Bb4 $19) 36... a3 {Weighted Error Value: White=0.59/Black=0.33} 0-1

[Event "Benidorm Open-B 2022"]
[Site "Benidorm"]
[Date "2022.12.06"]
[Round "5.9"]
[White "Millward, Kevin P"]
[Black "Ingham, H William"]
[Result "1/2-1/2"]
[ECO "A45"]
[WhiteElo "1928"]
[BlackElo "1831"]
[Annotator "TA"]
[PlyCount "65"]
[EventDate "2022.12.03"]
[EventType "swiss"]
[EventCountry "ESP"]
[SourceTitle "playchess.com"]
[Source "ChessBase"]
[SourceQuality "1"]
[TimeControl "5400+30"]

{[%evp 9,65,0,4,0,19,6,16,8,21,8,77,63,52,56,55,66,100,87,108,100,218,157,150,151,157,151,154,154,157,100,191,199,204,194,192,143,385,237,238,237,248,24,24,24,24,24,24,24,24,24,24,22,33,0,8,0,46,0]} 1. d4 Nf6 2. Nc3 d6 3. Bf4 c6 4. e4 Qa5 5. f3 e5 6. Be3 {B07: Pirc Defence: Miscellaneous Systems.} Be7 7. Qd2 b5 {[#]} 8. Nge2 $146 {The position is equal.} ({Predecessor:} 8. d5 b4 9. Nd1 cxd5 10. Nf2 h6 11. exd5 Nxd5 12. Bc4 Nxe3 13. Qxe3 {1-0 (39) Banach,S (1809)-Piechota,P (2070) Poznan 2013}) 8... b4 9. Nd1 Ba6 (9... O-O $11 {keeps the balance.}) 10. c3 bxc3 11. Qxc3 Qxc3+ 12. Ndxc3 exd4 13. Nxd4 {[%cal Be2d4,Bd4b5,Bb5a3,Ba3c4,Bc4e5][%mdl 32]} Bxf1 14. Rxf1 c5 (14... g6 $16) 15. Ndb5 {Strongly threatening Nc7+.} Kd7 {Inhibits Nc7.} 16. O-O-O $36 {[%mdl 2048] White has strong initiative.} Kc6 17. Rf2 {White is much more active.} a6 18. Na3 {Threatens to win with Nc4.} Nbd7 19. Na4 (19. Nc4 $142) 19... Nb6 (19... d5 $16) 20. Nxb6 $18 Kxb6 21. Nc4+ Kc6 22. e5 ({White should try} 22. Kc2 $18) 22... Ne8 $2 {[#]} (22... dxe5 $16 {was called for.} 23. Nxe5+ Kb5) 23. exd6 Nxd6 24. Ne5+ Kb5 25. Rxd6 $2 Bxd6 $11 26. Nxf7 Bxh2 {[#] And now ...Rhe8 would win.} 27. Nxh8 Rxh8 $18 {[%mdl 4096] Endgame KRB-KRB} 28. Rc2 Bd6 29. b3 Re8 30. Kd2 Rd8 31. Kc1 Re8 32. Kd2 Rd8 33. Kc1 {Black defended with fortune.   Weighted Error Value: White=0.36/Black=0.29 (precise)} (33. Ke2 $14) 1/2-1/2

[Event "Benidorm Open-B 2022"]
[Site "Benidorm"]
[Date "2022.12.06"]
[Round "5.10"]
[White "Izquierdo Carbellido, Pablo"]
[Black "Rios Garcia, Miguel"]
[Result "1/2-1/2"]
[ECO "A84"]
[WhiteElo "1900"]
[BlackElo "1829"]
[Annotator "TA"]
[PlyCount "115"]
[EventDate "2022.12.03"]
[EventType "swiss"]
[EventCountry "ESP"]
[SourceTitle "playchess.com"]
[Source "ChessBase"]
[SourceQuality "1"]
[TimeControl "5400+30"]

{[%evp 9,115,34,46,35,37,39,34,34,38,35,41,1,25,-5,1,0,7,0,12,8,11,0,0,-32,0,0,8,7,6,3,12,0,0,10,15,8,8,8,8,8,8,0,18,-29,18,-47,12,10,6,-31,-8,-20,0,0,0,0,0,0,0,-30,0,0,27,10,195,177,185,118,117,116,122,108,155,151,352,351,492,237,245,236,230,221,240,181,177,8,8,8,8,0,0,0,0,0,0,0,0,0,0,0,0,0,0,0,0,0,0,0]} 1. d4 f5 2. c4 e6 3. Nf3 Nf6 4. g3 b6 5. Bg2 Bb4+ 6. Bd2 {A84: Dutch Defence: 2 c4 Miscellaneous.} Bxd2+ 7. Nfxd2 ({Much worse is} 7. Kxd2 Bb7 $15) 7... d5 8. O-O {White is slightly better.} O-O 9. Nc3 c6 {[#]} 10. b3 $146 ({Predecessor:} 10. e3 Nbd7 11. b4 Bb7 12. a4 Qe7 13. c5 e5 14. Nb3 a5 15. b5 bxc5 16. dxc5 {½-½ (48) Shuvalova,P (2476)-Balla,T (2336) Chess.com INT 2021}) 10... Nbd7 11. Nf3 {[%cal Bd2f3,Bf3e1,Be1d3,Bd3f4][%mdl 32]} Ne4 12. Rc1 Ba6 13. Ne1 (13. Nxe4 {simplifies} fxe4 14. Ne1 Nf6 15. f3) 13... Qg5 14. Nd3 Rac8 15. Nf4 Qe7 16. f3 Nd6 17. cxd5 $1 exd5 18. Qd2 {Inhibits Qe3+.} Rfe8 19. Rfe1 {Threatening e4.} Nf6 {Inhibits e4.} 20. Nd3 Bxd3 21. Qxd3 Qe3+ 22. Qxe3 Rxe3 23. Kf2 Re7 24. e3 Kf7 25. Rc2 g5 26. h3 (26. Rec1 {feels stronger.}) 26... h5 (26... Rce8 $142) 27. Na4 (27. Rec1 $11) 27... Ke8 ({Black should try} 27... g4 $15) 28. Nb2 $11 g4 29. hxg4 hxg4 30. Rh1 Nf7 31. Nd3 (31. Rh4 {is interesting.} gxf3 32. Bh3 Ne4+ 33. Kxf3 Nfg5+ 34. Kf4) 31... gxf3 32. Bxf3 Kd7 33. Rh4 Rce8 34. Re2 Ne4+ 35. Bxe4 Rxe4 36. Rh7 Ke6 (36... R4e7 $11) 37. Rc2 Nd8 38. Ne5 ({Resist} 38. Rxa7 Kd6 $16) (38. b4 $18) 38... c5 $16 39. Rxa7 cxd4 40. exd4 Rxd4 {[#]} ({Better is} 40... f4) 41. Nf3 $1 {White has more active pieces.} Re4 (41... Rb4 $16 {keeps fighting.} 42. Re2+ Re4) 42. Ng5+ $18 Ke5 (42... Kd6 $142 43. Nxe4+ fxe4) 43. Nxe4 (43. Ra8 $142) 43... fxe4 {[%mdl 4096] Endgame KRR-KRN} 44. Rc8 Rf8+ 45. Ke2 Rh8 46. Rd7 Rh2+ {[#]} 47. Kf1 $2 ({Worse is} 47. Ke3 Ne6 48. Re8 Rxa2 $15) ({White has to play} 47. Ke1 $1 $18 Ne6 48. Re8) 47... Ne6 $11 {The position is equal.} 48. Re8 {Hoping for Rb7.} d4 $1 49. Rxd4 Kxd4 50. Rxe6 Rxa2 51. Rxb6 {KR-KR} Ra1+ 52. Ke2 Ra2+ 53. Kf1 Ke3 54. Rc6 Kf3 {( -> ...Ra1+)} 55. Rf6+ Kxg3 56. b4 Rb2 57. b5 Rxb5 58. Ke2 {Black escapes into a draw.   Weighted Error Value: White=0.21 (precise) /Black=0.20 (precise)} 1/2-1/2

[Event "Benidorm Open-B 2022"]
[Site "Benidorm"]
[Date "2022.12.06"]
[Round "5.12"]
[White "Pedraza Fernandez, Miguel Angel"]
[Black "Camison Zornoza, Cesar"]
[Result "1-0"]
[ECO "A51"]
[WhiteElo "1784"]
[BlackElo "1875"]
[Annotator "NA RC COMBH"]
[PlyCount "47"]
[EventDate "2022.12.03"]
[EventType "swiss"]
[EventCountry "ESP"]
[SourceTitle "playchess.com"]
[Source "ChessBase"]
[SourceQuality "1"]
[TimeControl "5400+30"]

1. d4 Nf6 2. c4 e5 3. dxe5 Ne4 4. a3 d6 5. Qc2 Bf5 6. Nc3 Ng3 7. e4 Nxh1 8. exf5 dxe5 9. Qe4 Nc6 10. Nf3 Bc5 11. Be3 Bxe3 12. fxe3 O-O 13. Rd1 Nd4 14. exd4 exd4 15. Rxd4 Qf6 16. Nd5 Qh6 17. Qf4 Rfe8+ 18. Be2 Qa6 19. Nxc7 Qb6 20. Nxe8 Rxe8 21. Qd2 h6 22. Kf1 Qc5 23. Kg1 Qxf5 24. Kxh1 1-0